bitfinex/quotes_ETHUSD_20260107
["timestamp","ask_amount","ask_price","bid_price","bid_amount"]
[1767827216986,0.98721097,3145.3,3144.7,0.97854894]
[1767827220053,0.98721097,3145.3,3144.7,4.15840477]
[1767827220258,0.001,3145.6,3144.8,0.97854894]
[1767827221186,0.98821097,3145.6,3145.0,0.97854894]
[1767827221381,0.001,3145.6,3145.0,0.98054894]
[1767827221565,0.001,3145.6,3145.0,2.2305774]
[1767827221760,0.001,3145.6,3145.1,0.97854894]
[1767827223220,0.001,3145.6,3145.2,0.93049954]
[1767827227001,0.001,3145.6,3145.2,4.10987843]
[1767827227496,0.001,3145.6,3145.2,0.93049954]
[1767827228180,0.001,3145.6,3145.2,4.10992411]
[1767827228494,0.001,3145.6,3145.3,0.93049954]
[1767827231198,0.001,3145.6,3145.4,0.93049954]
[1767827231874,0.96045053,3145.6,3145.0,0.002]
[1767827232080,0.96045053,3145.6,3145.2,0.834]
[1767827233880,0.95945053,3145.5,3145.0,0.002]
[1767827234689,0.001,3145.6,3145.0,0.002]
[1767827234690,0.001,3145.6,3145.1,0.93049954]
[1767827235486,9.5e-07,3145.3,3145.1,0.93049954]
[1767827235828,9.4e-07,3145.6,3145.2,0.93049954]
[1767827236330,0.96045053,3146.1,3145.4,0.93049954]
[1767827236471,0.96045053,3146.1,3145.3,6.35869392]
[1767827236472,0.001,3146.1,3145.6,0.93049954]
[1767827238077,0.95945053,3146.0,3145.5,1.56291935]
[1767827238278,0.95945053,3145.9,3144.9,4.11019664]
[1767827238603,0.95945053,3145.9,3145.0,0.002]
[1767827240101,0.95945053,3145.7,3145.0,0.002]
[1767827241107,4.13841222,3145.7,3145.0,0.002]
[1767827242293,0.95945053,3145.6,3145.0,0.002]
[1767827244184,0.95945053,3145.5,3145.0,0.002]
[1767827244816,0.95945053,3145.4,3145.0,0.002]
[1767827245015,0.95945053,3145.4,3144.6,1.76649954]
[1767827245185,0.95945053,3145.4,3144.6,0.836]
[1767827246924,0.95945053,3145.2,3144.6,0.836]
[1767827247714,0.95945053,3145.2,3145.0,0.002]
[1767827247919,0.95945053,3145.1,3144.6,0.836]
[1767827252409,0.98077251,3145.0,3144.6,0.836]
[1767827253125,0.98077251,3145.3,3144.6,0.836]
[1767827253305,0.98077251,3145.1,3144.6,0.002]
[1767827255424,4.1603345,3145.1,3144.6,0.002]
[1767827256230,0.98077251,3145.1,3144.6,0.002]
[1767827256728,0.97877251,3145.1,3144.6,0.002]
[1767827257505,0.97877251,3145.1,3144.6,0.49700914]
[1767827258826,4.15834863,3145.1,3144.6,0.49700914]
[1767827259025,0.98077251,3145.0,3144.6,0.002]
[1767827259530,0.98077251,3145.0,3144.5,0.002]
[1767827259531,0.98077251,3144.9,3144.5,0.002]
[1767827259934,0.98077251,3144.9,3144.2,0.834]
[1767827262027,4.16062496,3144.8,3144.2,0.834]
[1767827262440,4.16062496,3144.8,3143.8,3.18284271]
[1767827262441,0.98077251,3144.7,3143.9,0.93196854]
[1767827262616,0.98077251,3144.7,3143.8,0.002]
[1767827262804,0.98077251,3144.7,3143.8,0.93396854]
[1767827263004,0.98077251,3144.7,3143.9,0.93196854]
[1767827263907,0.98077251,3144.7,3144.0,0.93196854]
[1767827264334,0.98077251,3145.3,3144.2,0.93196854]
[1767827264942,0.98077251,3145.3,3144.3,0.93196854]
[1767827266446,0.98077251,3145.2,3144.5,0.93196854]
[1767827269787,0.98077251,3145.2,3144.6,0.93196854]
[1767827270287,4.16023333,3145.2,3144.6,0.93196854]
[1767827270949,0.98077251,3145.1,3144.8,0.002]
[1767827271844,3.17965023,3145.0,3144.8,0.002]
[1767827272254,4.16042274,3145.0,3144.8,0.002]
[1767827272470,0.98077251,3144.9,3143.7,0.002]
[1767827272669,0.98077251,3144.7,3143.9,3.18071276]
[1767827272973,0.98077251,3144.7,3143.9,4.1126813]
[1767827273981,0.98077251,3144.6,3143.9,4.11269377]
[1767827275482,0.98077251,3145.4,3144.0,0.93196854]
[1767827275781,0.98077251,3145.2,3144.1,0.96376212]
[1767827275964,0.98077251,3145.2,3144.1,0.93196854]
[1767827276759,4.16032164,3145.1,3144.3,0.93196854]
[1767827278175,0.98077251,3145.1,3144.4,0.93196854]
[1767827278376,4.16037256,3145.1,3144.4,0.93196854]
[1767827280911,0.98077251,3145.0,3144.2,1.76696854]
[1767827281178,0.98077251,3145.0,3144.2,4.94735847]
[1767827282084,0.98077251,3145.0,3144.3,0.9228016]
[1767827282483,0.73398492,3145.1,3144.4,0.9228016]
[1767827282656,4.17585678,3145.2,3144.5,0.9228016]
[1767827283260,0.99736534,3145.6,3144.5,0.9228016]
[1767827283496,4.17641989,3145.6,3144.5,0.9228016]
[1767827283787,0.99636534,3145.5,3144.5,0.9248016]
[1767827283958,0.001,3144.9,3144.5,0.9248016]
[1767827284157,0.001,3144.9,3144.7,0.9228016]
[1767827284399,3.17914481,3145.5,3144.9,0.9228016]
[1767827284680,0.001,3145.6,3144.9,0.9228016]
[1767827284992,3.18004469,3145.6,3144.9,0.9228016]
[1767827286092,0.99636534,3145.5,3144.9,0.9228016]
[1767827286585,3.59768569,3145.6,3144.9,0.9228016]
[1767827286778,3.59768569,3145.6,3145.0,0.9228016]
[1767827286957,0.001,3145.6,3145.0,0.9228016]
[1767827287162,0.99736534,3146.1,3145.6,0.9228016]
[1767827287163,3.17958383,3146.1,3145.6,0.9228016]
[1767827287360,3.17958383,3146.1,3145.6,0.90905431]
[1767827287592,0.99636534,3146.0,3145.3,0.9228016]
[1767827289261,0.99636534,3146.0,3145.3,4.10210974]
[1767827290377,0.99636534,3146.0,3145.3,0.9228016]
[1767827290580,0.99636534,3146.0,3145.3,4.102142]
[1767827290976,0.99636534,3146.0,3145.3,4.52995045]
[1767827291790,0.99636534,3146.0,3145.4,0.90403922]
[1767827293077,0.95841443,3146.1,3145.4,0.90403922]
[1767827293869,0.95841443,3146.1,3145.3,3.60714885]
[1767827294101,0.95841443,3146.1,3145.3,4.51118807]
[1767827294399,0.95741443,3146.0,3145.4,0.85245558]
[1767827296296,0.95741443,3146.0,3145.3,3.17932774]
[1767827297068,0.001,3145.7,3145.3,3.17932774]
[1767827297263,0.001,3145.7,3145.3,3.17934013]
[1767827297566,0.95841443,3145.7,3145.2,4.01538791]
[1767827297777,0.95841443,3145.7,3145.3,0.40153879]
[1767827297997,0.95841443,3145.7,3145.2,0.836]
[1767827299277,0.95841443,3145.7,3145.2,4.01544352]
[1767827300104,0.95841443,3145.7,3145.2,4.01542074]
[1767827302173,0.001,3145.7,3145.3,0.90403922]
[1767827302468,0.001,3145.7,3145.5,0.90403922]
[1767827302674,0.95841443,3146.1,3145.4,6.35849176]
[1767827302890,0.95841443,3146.1,3145.4,3.17924588]
[1767827303780,0.95841443,3146.1,3145.2,0.836]
[1767827303999,0.95741443,3146.0,3145.2,0.836]
[1767827304193,0.95741443,3146.0,3145.3,3.58088967]
[1767827304393,0.95741443,3145.9,3145.1,3.17945712]
[1767827304602,0.95741443,3145.9,3144.9,0.90603922]
[1767827304804,0.95741443,3145.9,3144.9,0.002]
[1767827306302,0.95741443,3145.5,3144.9,0.002]
[1767827306596,0.95741443,3145.2,3144.9,0.002]
[1767827307216,0.95741443,3145.2,3144.5,0.002]
[1767827307519,0.95741443,3145.2,3144.1,0.002]
[1767827307925,9.53804088,3145.3,3144.4,0.90403922]
[1767827307926,6.35869392,3145.3,3144.4,0.90403922]
[1767827308084,1.56984354,3145.2,3144.4,0.90403922]
[1767827308285,2.52725797,3145.2,3144.4,0.90403922]
[1767827308612,0.95741443,3145.1,3144.4,0.90403922]
[1767827308815,0.834,3145.2,3144.5,0.90403922]
[1767827309112,4.97087155,3145.2,3144.5,0.90403922]
[1767827309306,0.95741443,3145.1,3144.5,0.90403922]
[1767827310212,0.95741443,3145.1,3144.8,0.002]
[1767827310411,0.95741443,3144.9,3144.2,0.90403922]
[1767827310614,0.95741443,3144.9,3144.5,0.002]
[1767827313608,4.13719071,3144.9,3144.5,0.002]
[1767827314510,0.95741443,3144.9,3144.5,0.002]
[1767827316708,1.81231516,3145.0,3144.5,0.002]
[1767827317096,0.97831516,3145.5,3144.5,0.95375566]
[1767827317416,1.81231516,3145.6,3144.7,0.95175566]
[1767827317605,1.81231516,3145.6,3144.8,0.95175566]
[1767827317915,4.99137843,3145.6,3144.8,0.95175566]
[1767827318127,1.81231516,3145.6,3144.8,0.95175566]
[1767827318285,0.834,3145.6,3144.8,0.95175566]
[1767827318484,4.15731636,3145.7,3145.0,0.95175566]
[1767827318899,0.97831516,3145.6,3145.0,0.95175566]
[1767827319604,4.15745997,3145.5,3144.8,0.95175566]
[1767827320413,4.15727262,3145.7,3144.9,0.95175566]
[1767827320622,4.15727262,3145.7,3145.0,0.95175566]
[1767827320826,7.3362959,3145.7,3145.0,0.95175566]
[1767827321011,0.97831516,3145.6,3145.0,0.95175566]
[1767827321323,0.97831516,3145.6,3144.7,0.95175566]
[1767827321520,0.97831516,3145.6,3144.8,1.36493118]
[1767827322113,4.15740064,3145.6,3144.9,0.95175566]
[1767827322710,0.001,3145.4,3144.9,0.95175566]
[1767827323815,0.97931516,3145.4,3144.8,0.41517552]
[1767827324013,0.97931516,3145.4,3144.8,1.36693118]
[1767827324196,0.001,3145.4,3144.9,0.95175566]
[1767827326431,0.001,3145.4,3145.0,0.95175566]
[1767827328545,0.834,3145.9,3145.3,0.95175566]
[1767827328704,3.17863954,3146.0,3145.3,0.95175566]
[1767827328904,4.89060743,3146.0,3145.3,0.95175566]
[1767827329318,0.7,3145.7,3145.3,0.95175566]
[1767827330333,4.85729185,3145.7,3145.0,0.95175566]
[1767827330632,0.97831516,3145.9,3145.2,0.95175566]
[1767827330837,0.97831516,3145.9,3145.3,0.95175566]
[1767827331040,4.15706949,3145.9,3145.3,0.95175566]
[1767827331216,0.97831516,3145.9,3145.3,0.95175566]
[1767827331904,3.17867612,3146.0,3145.3,0.95175566]
[1767827332804,7.3356963,3146.0,3145.3,0.95175566]
[1767827333004,0.97831516,3145.9,3145.1,0.95175566]
[1767827333205,0.97831516,3145.9,3145.0,0.95175566]
[1767827333731,0.97831516,3145.9,3145.2,0.95175566]
[1767827334527,0.97831516,3145.9,3145.3,0.002]
[1767827334724,0.001,3145.6,3145.3,0.002]
[1767827336814,0.001,3145.6,3145.3,0.95375566]
[1767827337738,0.001,3145.6,3145.3,0.002]
[1767827340559,0.001,3145.6,3145.3,0.95375566]
[1767827340845,0.001,3145.6,3145.3,0.002]
[1767827341911,0.001,3145.6,3145.3,0.92006391]
[1767827342414,0.001,3145.6,3145.4,0.91806391]
[1767827342808,0.001,3146.1,3145.6,4.09710765]
[1767827343021,0.001,3146.1,3145.7,0.91806391]
[1767827343223,0.001,3146.1,3145.8,0.91806391]
[1767827343845,0.001,3146.1,3145.7,0.40971077]
[1767827344143,0.001,3146.1,3145.8,0.91806391]
[1767827345666,0.001,3146.1,3145.7,1.32777468]
[1767827346161,0.001,3146.1,3145.7,4.50666672]
[1767827346348,0.001,3146.1,3145.8,0.45066667]
[1767827346952,0.001,3146.1,3145.8,1.36873058]
[1767827347159,0.001,3146.1,3145.9,0.91806391]
[1767827347721,0.001,3146.1,3145.9,4.09676517]
[1767827348031,0.001,3146.1,3145.9,0.91806391]
[1767827348234,0.001,3146.1,3145.9,1.37281853]
[1767827349951,0.001,3146.1,3145.3,0.002]
[1767827350124,0.001,3146.1,3145.5,0.91806391]
[1767827350324,0.001,3146.1,3145.6,0.91806391]
[1767827351856,0.001,3146.1,3145.6,4.09710303]
[1767827352068,0.9439291,3146.1,3145.4,0.91806391]
[1767827352274,0.9439291,3146.1,3145.4,1.41140226]
[1767827352476,0.9439291,3146.1,3145.3,0.002]
[1767827352477,0.9429291,3146.0,3145.3,0.002]
[1767827355257,0.9429291,3145.8,3145.3,0.002]
[1767827357569,0.9429291,3145.6,3145.3,0.002]
[1767827359369,0.9429291,3146.0,3145.3,0.92006391]
[1767827359666,4.12156864,3146.0,3145.6,0.002]
[1767827359866,0.9429291,3145.8,3145.6,0.002]
[1767827360045,0.9439291,3145.8,3145.6,0.002]
[1767827367294,0.001,3145.8,3145.6,0.002]
[1767827367480,0.835,3146.1,3145.6,0.002]
[1767827367481,0.001,3146.1,3145.6,0.92006391]
[1767827369161,0.001,3146.1,3145.7,0.91806391]
[1767827369369,0.001,3146.1,3145.9,0.91806391]
[1767827370889,0.001,3146.1,3145.7,0.91806391]
[1767827371197,0.001,3146.1,3145.6,0.92006391]
[1767827371883,0.9439291,3146.1,3145.6,0.002]
[1767827372084,0.001,3146.1,3145.6,0.98758742]
[1767827373781,0.001,3146.1,3145.9,0.002]
[1767827373981,0.001,3146.1,3145.6,0.98758742]
[1767827375293,0.001,3146.1,3145.7,0.98558742]
[1767827376099,0.001,3146.1,3145.8,0.98558742]
[1767827378511,0.001,3146.1,3145.6,0.98758742]
[1767827382680,0.93503408,3146.1,3145.6,0.002]
[1767827383008,0.93503408,3146.1,3145.3,0.002]
[1767827383009,0.93403408,3146.0,3145.3,0.002]
[1767827383213,0.93403408,3145.9,3144.5,0.002]
[1767827383510,0.93403408,3145.9,3144.1,0.002]
[1767827383511,0.93403408,3144.8,3144.1,0.002]
[1767827383685,0.59020008,3144.7,3144.1,0.98758742]
[1767827383890,0.93403408,3144.8,3144.1,0.98758742]
[1767827384480,0.93403408,3144.8,3144.1,4.16810681]
[1767827384790,0.93403408,3144.8,3144.1,0.98758742]
[1767827385191,4.1139253,3144.8,3144.1,0.98758742]
[1767827386387,0.93403408,3144.8,3144.1,0.98758742]
[1767827386912,0.93403408,3144.8,3144.3,0.002]
[1767827387107,4.92664433,3144.8,3144.3,0.002]
[1767827387318,1.74679123,3144.8,3144.3,0.002]
[1767827387818,4.92664446,3144.8,3144.3,0.002]
[1767827388186,1.74679123,3144.8,3144.3,0.002]
[1767827388528,0.93403408,3144.7,3144.3,0.002]
[1767827389032,0.93403408,3144.7,3144.1,0.98758742]
[1767827389033,0.93403408,3144.6,3144.1,0.002]
[1767827389194,3.99060035,3144.7,3143.8,0.002]
[1767827389195,0.9352031,3144.3,3143.8,0.002]
[1767827390120,0.9352031,3144.3,3143.8,0.00082845]
[1767827391029,0.93403408,3144.1,3143.8,0.00082845]
[1767827392426,4.01555158,3144.3,3143.8,0.00082845]
[1767827392605,0.31815648,3144.2,3143.8,0.00082845]
[1767827392804,5.26671819,3144.2,3143.8,0.00082845]
[1767827393130,8.44724582,3144.2,3143.8,0.00082845]
[1767827393820,5.26671819,3144.2,3143.8,0.00082845]
[1767827394128,0.93403408,3144.0,3143.8,0.00082845]
[1767827394899,0.93403408,3144.0,3143.7,0.002]
[1767827395201,4.1147718,3144.0,3143.7,0.002]
[1767827397033,4.1147718,3144.0,3143.7,0.00083098]
[1767827398424,4.02544358,3144.1,3143.7,0.00083098]
[1767827398629,0.001,3144.0,3143.7,0.00083098]
[1767827399201,1.51458185,3144.0,3143.7,0.00083098]
[1767827399400,1.51458185,3144.0,3142.3,0.08900757]
[1767827399401,0.93403408,3143.9,3143.1,0.98558742]
[1767827399628,0.93403408,3143.9,3142.9,0.98558742]
[1767827399809,0.93403408,3143.9,3143.0,7.48558742]
[1767827400014,0.93403408,3143.8,3143.0,7.48558742]
[1767827400704,0.93403408,3143.6,3143.0,7.48558742]
[1767827401330,4.11512096,3143.6,3143.0,7.48558742]
[1767827401512,0.835,3143.7,3143.1,0.98558742]
[1767827401897,4.01597314,3143.7,3143.1,0.98558742]
[1767827402106,0.835,3143.7,3143.1,0.98558742]
[1767827402433,3.761299,3144.0,3143.1,0.98558742]
[1767827402434,0.835,3143.9,3143.1,0.98558742]
[1767827402725,0.93929442,3143.8,3143.1,0.98558742]
[1767827403432,3.1809651,3143.7,3143.1,0.98558742]
[1767827403948,4.88746523,3143.9,3143.2,0.92924611]
[1767827404103,4.95512761,3143.9,3143.2,0.92924611]
[1767827404303,8.1359608,3143.9,3143.2,0.92924611]
[1767827404935,0.93929442,3143.8,3143.0,7.42924611]
[1767827405140,0.93929442,3143.7,3143.0,7.42924611]
[1767827405328,3.18106629,3143.6,3143.0,7.42924611]
[1767827405520,4.1202812,3143.7,3143.1,0.92924611]
[1767827405836,0.93929442,3143.7,3143.1,0.92924611]
[1767827406140,4.95527473,3143.7,3143.1,0.92924611]
[1767827406519,8.13625504,3143.7,3143.1,0.92924611]
[1767827406920,4.95527473,3143.7,3143.1,0.92924611]
[1767827407429,8.13625504,3143.7,3143.1,0.92924611]
[1767827407822,4.95527473,3143.7,3143.1,0.92924611]
[1767827408140,4.95527473,3143.7,3143.1,0.42777252]
[1767827408341,0.93929442,3143.6,3143.0,6.5]
[1767827409022,1.64861473,3143.7,3143.1,0.92924611]
[1767827409216,4.01597286,3143.7,3143.1,0.92924611]
[1767827409415,8.13624014,3143.7,3143.1,0.92924611]
[1767827410027,0.93929442,3143.6,3143.0,6.5]
[1767827410228,0.93929442,3143.6,3143.3,0.002]
[1767827410431,1.75291843,3143.5,3143.0,6.5]
[1767827410814,0.81362401,3143.5,3143.0,7.42924611]
[1767827411140,0.93929442,3143.6,3143.0,7.43124611]
[1767827411540,4.01601464,3143.7,3143.1,0.92924611]
[1767827411740,0.835,3143.6,3143.1,0.92924611]
[1767827412333,0.835,3143.7,3143.1,0.92924611]
[1767827412717,0.835,3143.8,3143.1,0.92924611]
[1767827412918,0.835,3143.8,3143.2,0.92924611]
[1767827413214,0.001,3144.0,3143.2,0.96106082]
[1767827413526,3.18166547,3144.0,3143.2,0.96106082]
[1767827413844,0.001,3144.0,3143.3,0.92924611]
[1767827414047,0.001,3144.0,3143.5,0.92924611]
[1767827415850,0.001,3144.0,3143.7,0.92924611]
[1767827416141,0.835,3144.6,3144.0,0.92924611]
[1767827416527,0.835,3144.6,3143.7,0.31810663]
[1767827416528,0.93929442,3144.5,3143.8,0.92924611]
[1767827416719,0.93929442,3144.5,3143.6,0.92924611]
[1767827416922,1.63929442,3144.3,3143.6,0.92924611]
[1767827417141,1.63929442,3144.3,3143.6,1.38171828]
[1767827418628,0.93929442,3144.1,3143.4,0.92924611]
[1767827420846,4.11993939,3144.1,3143.4,0.92924611]
[1767827421224,0.93929442,3144.0,3143.4,0.92924611]
[1767827422928,0.93929442,3144.0,3143.5,0.002]
[1767827423128,0.001,3143.8,3143.5,0.002]
[1767827424156,0.001,3143.8,3143.6,0.92924611]
[1767827425727,0.001,3143.8,3143.7,0.92924611]
[1767827428528,0.001,3143.8,3143.5,1.26634217]
[1767827429142,0.001,3143.8,3143.5,4.44750393]
[1767827429364,0.001,3143.8,3143.5,1.26634217]
[1767827430653,0.001,3143.8,3143.6,0.92924611]
[1767827432359,0.001,3143.8,3143.7,0.93284204]
[1767827432561,0.001,3143.8,3143.7,1.34443225]
[1767827433166,0.001,3143.8,3143.7,0.41159021]
[1767827433545,0.001,3143.8,3143.5,4.11595738]
[1767827433742,0.001,3143.8,3143.5,0.93484204]
[1767827433942,0.001,3143.8,3143.6,0.93284204]
[1767827435564,0.001,3143.8,3143.7,0.002]
[1767827436277,0.001,3143.8,3143.7,0.93484204]
[1767827437159,1.83340565,3144.5,3143.8,0.93284204]
[1767827438086,5.01362708,3144.5,3143.8,0.93284204]
[1767827438745,5.01362708,3144.5,3143.7,3.59472435]
[1767827438746,0.99840565,3144.6,3143.9,0.93284204]
[1767827439136,0.7,3144.2,3143.9,0.93284204]
[1767827440265,3.18025696,3144.4,3143.9,0.93284204]
[1767827440470,4.17866261,3144.4,3143.7,1.34663181]
[1767827440769,0.99840565,3144.4,3143.8,1.38560777]
[1767827441869,3.18018423,3144.5,3143.9,0.93284204]
[1767827442165,4.17858988,3144.5,3143.9,0.93284204]
[1767827442681,0.835,3144.9,3144.0,0.93284204]
[1767827442854,0.99840565,3144.8,3144.0,0.41135923]
[1767827443172,0.99840565,3144.8,3143.7,0.002]
[1767827444180,0.99840565,3144.4,3143.7,0.002]
[1767827444350,3.1803581,3144.3,3143.7,0.93484204]
[1767827445253,5.01370466,3144.4,3143.7,0.93484204]
[1767827445453,5.90309243,3144.4,3143.7,0.93484204]
[1767827445779,5.0680778,3144.4,3143.7,0.93484204]
[1767827445968,0.99840565,3144.3,3143.7,0.93484204]
[1767827446764,0.99840565,3144.3,3143.7,4.11579149]
[1767827446966,0.88938777,3144.4,3143.8,0.93284204]
[1767827447163,0.7,3144.5,3143.8,0.93284204]
[1767827447859,0.001,3144.0,3143.8,0.93284204]
[1767827448683,0.001,3144.0,3143.7,0.002]
[1767827449072,0.001,3144.0,3143.7,0.93484204]
[1767827449381,0.001,3144.0,3143.8,4.11367687]
[1767827449877,0.001,3144.0,3143.9,0.93284204]
[1767827450281,0.001,3144.0,3143.8,3.18083483]
[1767827450485,0.001,3144.0,3143.8,3.91049721]
[1767827450663,0.001,3144.0,3143.8,0.72966238]
[1767827450868,0.001,3144.0,3143.8,3.18084694]
[1767827451682,0.001,3144.0,3143.8,7.2945529]
[1767827451883,1.83340565,3144.6,3143.9,0.93284204]
[1767827452088,0.99840565,3144.5,3143.8,6.36171086]
[1767827452288,0.99840565,3144.5,3143.8,7.09136615]
[1767827452469,0.99840565,3144.5,3143.8,3.91050223]
[1767827453284,0.99840565,3144.5,3143.8,7.09136615]
[1767827453600,0.99840565,3144.5,3143.8,8.02420819]
[1767827453785,0.99840565,3144.4,3143.8,1.66249733]
[1767827453983,0.99840565,3144.4,3143.7,0.002]
[1767827454995,0.99840565,3144.2,3143.7,0.002]
[1767827455160,0.99840565,3144.2,3144.0,3.0]
[1767827455363,0.99840565,3144.1,3144.0,3.0]
[1767827460216,5.80596611,3144.7,3144.0,3.0]
[1767827460217,0.99840565,3144.6,3144.0,3.0]
[1767827460814,0.99840565,3144.6,3144.0,6.18057529]
[1767827461011,8.15027651,3145.4,3144.2,0.93284204]
[1767827461012,0.835,3144.9,3144.2,0.93284204]
[1767827461310,1.83340565,3144.9,3144.2,0.93284204]
[1767827461516,0.99840565,3144.8,3144.2,0.93284204]
[1767827461714,0.99840565,3144.8,3144.2,1.64418794]
[1767827462610,0.99840565,3144.8,3144.2,4.82464116]
[1767827463032,0.835,3144.9,3144.3,0.97895988]
[1767827463330,0.835,3144.9,3144.2,0.7113459]
[1767827463331,0.94692272,3144.9,3144.2,0.7113459]
[1767827463648,0.94692272,3145.5,3144.8,0.97895988]
[1767827463788,0.94692272,3145.5,3144.3,4.97096611]
[1767827463789,0.94692272,3145.5,3144.4,0.97895988]
[1767827464539,0.94692272,3145.3,3144.6,0.97895988]
[1767827464735,0.94692272,3145.3,3144.7,0.41591157]
[1767827466014,0.94692272,3145.3,3144.7,1.39487145]
[1767827466417,0.94692272,3145.3,3144.7,0.41591157]
[1767827466621,0.94692272,3145.3,3144.6,0.97895988]
[1767827466781,0.94692272,3145.3,3144.7,3.17995357]
[1767827467524,0.94692272,3145.6,3144.8,0.97895988]
[1767827467692,1.78192272,3145.6,3144.8,0.97895988]
[1767827468022,1.78192272,3145.6,3144.9,1.71284658]
[1767827468209,0.94692272,3145.5,3144.9,1.71284658]
[1767827468386,0.7,3145.3,3144.9,1.71284658]
[1767827468817,0.7,3145.3,3145.0,4.15861011]
[1767827469121,0.7,3145.3,3145.0,0.97895988]
[1767827469318,0.835,3145.6,3145.0,0.97895988]
[1767827469822,1.3310927,3145.6,3145.0,0.97895988]
[1767827470006,0.94692272,3145.7,3145.0,0.97895988]
[1767827470208,4.12586855,3145.7,3145.0,0.97895988]
[1767827471815,0.94692272,3145.9,3145.1,0.97895988]
[1767827472022,0.835,3145.8,3145.1,0.97895988]
[1767827472400,0.94692272,3145.9,3145.1,0.97895988]
[1767827472717,2.19458841,3145.9,3145.1,0.97895988]
[1767827472918,5.37333116,3145.9,3145.2,0.97895988]
[1767827473128,1.35958841,3145.9,3145.2,0.97895988]
[1767827473292,0.94692272,3145.9,3145.2,0.97895988]
[1767827473884,4.12567208,3145.9,3145.2,0.97895988]
[1767827475396,0.94692272,3145.8,3144.9,0.97895988]
[1767827475596,0.94692272,3145.8,3144.3,0.97895988]
[1767827475795,0.94692272,3145.6,3144.7,3.17988982]
[1767827476097,0.94692272,3145.6,3144.7,0.97895988]
[1767827476327,0.94692272,3145.4,3144.7,0.97895988]
[1767827477631,4.12618946,3145.4,3144.7,0.97895988]
[1767827478245,4.12618946,3145.4,3144.7,4.15889642]
[1767827478538,0.94692272,3145.4,3144.7,4.15889642]
[1767827478711,4.96111905,3145.5,3144.8,0.97895988]
[1767827478912,5.84817014,3145.5,3144.8,0.97895988]
[1767827479950,0.94692272,3145.8,3144.9,0.97895988]
[1767827480158,0.835,3145.7,3144.9,1.01075739]
[1767827481329,0.835,3145.7,3144.9,0.97895988]
[1767827481560,0.834,3145.8,3144.9,0.97895988]
[1767827481747,0.94692272,3145.9,3144.9,0.97895988]
[1767827481951,0.834,3145.8,3144.9,0.97895988]
[1767827482243,3.17884163,3145.8,3145.1,0.97895988]
[1767827482444,0.001,3145.5,3145.1,0.97895988]
[1767827484356,0.001,3145.5,3145.2,0.97895988]
[1767827484938,0.94792272,3146.1,3145.2,0.97895988]
[1767827485154,0.94792272,3146.1,3145.1,6.35905416]
[1767827485155,0.94792272,3146.1,3145.3,0.7338014]
[1767827486025,0.94692272,3146.0,3145.3,0.7338014]
[1767827486521,0.94692272,3146.0,3145.3,3.91308923]
[1767827486725,0.94692272,3146.0,3145.3,8.07139607]
[1767827487862,0.94692272,3146.0,3145.3,4.89204911]
[1767827488033,0.94692272,3146.0,3145.4,0.80714629]
[1767827488535,0.94692272,3146.0,3145.2,3.17944804]
[1767827488839,0.94692272,3146.0,3145.2,7.33785596]
[1767827489436,0.94792272,3146.1,3145.4,0.97895988]
[1767827490125,0.001,3146.1,3145.4,0.97895988]
[1767827490751,0.001,3146.1,3145.6,0.97895988]
[1767827491066,0.001,3146.1,3145.8,0.97895988]
[1767827493767,0.001,3146.1,3145.9,0.91438549]
[1767827494666,0.001,3146.1,3145.7,3.91258422]
[1767827494667,0.001,3146.1,3145.7,0.73372495]
[1767827494839,0.90362659,3146.1,3145.7,0.73372495]
[1767827495061,0.001,3146.1,3145.8,0.91438549]
[1767827495261,0.001,3146.1,3145.8,1.07919653]
[1767827497184,0.001,3146.1,3145.8,0.16481104]
[1767827500277,0.001,3146.1,3145.8,1.07919653]
[1767827501459,0.001,3146.1,3145.6,0.91438549]
[1767827502784,0.001,3146.1,3145.6,4.09342234]
[1767827502981,0.001,3146.1,3145.6,0.91438549]
[1767827504867,0.001,3146.1,3145.7,0.91438549]
[1767827505974,0.001,3145.8,3145.7,4.09332817]
[1767827506168,0.001,3146.1,3145.7,3.90617795]
[1767827506367,0.90362659,3146.1,3145.7,0.72723527]
[1767827506563,0.90362659,3146.1,3145.5,3.17906211]
[1767827506866,0.90362659,3146.1,3145.5,4.0934476]
[1767827507055,0.90362659,3146.1,3145.6,3.17903976]
[1767827507457,0.90362659,3146.1,3145.7,3.17893689]
[1767827507688,0.90362659,3146.1,3145.8,0.31789369]
[1767827507996,0.001,3146.1,3145.8,0.31789369]
[1767827508162,0.001,3146.1,3145.9,0.91438549]
[1767827511569,0.001,3146.1,3145.8,0.31789369]
[1767827511970,0.001,3146.1,3145.5,4.09347818]
[1767827512175,0.001,3146.1,3145.6,0.91438549]
[1767827513081,0.90362659,3146.1,3145.5,0.91438549]
[1767827513293,0.001,3146.1,3145.6,0.91438549]
[1767827513495,0.001,3146.1,3145.7,0.7272623]
[1767827513904,0.90362659,3146.1,3145.7,0.7272623]
[1767827514292,0.90362659,3146.1,3145.5,3.17909267]
[1767827516483,0.001,3146.1,3145.5,3.17909267]
[1767827516685,0.90262659,3147.5,3145.9,0.91438549]
[1767827516890,0.90262659,3147.4,3145.9,0.91438549]
[1767827517216,0.90262659,3147.4,3146.1,0.91438549]
[1767827517504,0.90262659,3147.2,3146.3,0.91438549]
[1767827518911,0.90262659,3147.3,3146.4,0.91438549]
[1767827519807,4.08005414,3147.2,3146.4,0.91438549]
[1767827520111,0.57832531,3148.4,3147.5,0.91438549]
[1767827520318,0.90262659,3148.6,3147.5,0.91438549]
[1767827520608,0.90262659,3148.5,3147.5,0.8577153]
[1767827520980,0.90262659,3148.5,3147.2,0.91438549]
[1767827521237,0.90262659,3148.4,3147.3,0.91438549]
[1767827521816,0.80897165,3148.5,3147.4,0.99311245]
[1767827521817,4.11074906,3148.3,3147.4,0.99311245]
[1767827522189,0.91248019,3148.2,3147.4,0.99311245]
[1767827522806,0.91248019,3148.2,3147.3,3.17732363]
[1767827523711,0.91248019,3148.6,3147.4,0.99778814]
[1767827523886,4.08849492,3148.6,3147.6,4.17477781]
[1767827524093,4.08849492,3148.6,3147.7,0.99778814]
[1767827524287,0.91248019,3148.5,3147.5,0.73524387]
[1767827524597,0.91248019,3148.4,3147.2,0.834]
[1767827525207,0.91248019,3148.4,3147.0,1.83178814]
[1767827525389,0.91248019,3148.4,3147.0,5.00937608]